bitfinex-derivatives/quotes_BTCF0:USTF0_20251109
["timestamp","ask_amount","ask_price","bid_price","bid_amount"]
[1762670022997,0.08501983,101870.0,101860.0,0.67293026]
[1762670023603,0.0001273,101870.0,101860.0,0.67293026]
[1762670023899,0.14350655,101890.0,101880.0,0.1568091]
[1762670024100,0.06828126,101890.0,101880.0,0.5176091]
[1762670024800,0.16646076,101890.0,101880.0,0.5176091]
[1762670025001,0.25235329,101890.0,101880.0,0.5176091]
[1762670025501,0.25535329,101890.0,101880.0,0.5176091]
[1762670026302,0.15717379,101890.0,101880.0,0.5176091]
[1762670029603,0.25535329,101890.0,101880.0,0.5176091]
[1762670030000,0.15717379,101890.0,101880.0,0.5176091]
[1762670032406,0.15717379,101890.0,101880.0,0.8784091]
[1762670033200,0.13421958,101890.0,101880.0,0.8784091]
[1762670033500,0.08903958,101890.0,101880.0,0.8784091]
[1762670033906,0.13421958,101890.0,101880.0,0.8784091]
[1762670036310,0.16246326,101890.0,101880.0,0.8784091]
[1762670037902,0.11728326,101890.0,101880.0,0.8784091]
[1762670041900,0.11428326,101890.0,101880.0,0.8784091]
[1762670042101,0.11528326,101890.0,101880.0,0.8784091]
[1762670043010,0.11428326,101890.0,101880.0,0.8784091]
[1762670043412,0.13728326,101890.0,101880.0,0.8784091]
[1762670043606,0.00114705,101890.0,101880.0,0.8784091]
[1762670043809,0.11428326,101890.0,101880.0,0.8784091]
[1762670044812,0.00114705,101890.0,101880.0,0.8784091]
[1762670049122,0.00014705,101890.0,101880.0,0.8784091]
[1762670049315,0.00014705,101890.0,101880.0,0.8794091]
[1762670051018,0.11313621,101900.0,101890.0,0.1553595]
[1762670051217,0.11313621,101900.0,101890.0,0.59418863]
[1762670051412,0.13613621,101900.0,101890.0,0.59418863]
[1762670051615,0.15873621,101910.0,101900.0,0.1111772]
[1762670051815,0.18163405,101910.0,101900.0,0.5161472]
[1762670053117,0.18463405,101910.0,101900.0,0.5161472]
[1762670053518,0.18563405,101910.0,101900.0,0.5161472]
[1762670053816,0.07249784,101910.0,101900.0,0.5161472]
[1762670054020,0.18563405,101910.0,101900.0,0.5161472]
[1762670055214,0.02689784,101910.0,101900.0,0.5161472]
[1762670055411,0.004,101910.0,101900.0,0.5161472]
[1762670056220,0.00014705,101920.0,101910.0,0.05718]
[1762670056522,0.00014705,101920.0,101910.0,0.5161402]
[1762670057415,0.00414705,101920.0,101910.0,0.5161402]
[1762670058415,0.11728326,101920.0,101910.0,0.5161402]
[1762670060321,0.14028326,101920.0,101910.0,0.5161402]
[1762670061516,0.16288326,101920.0,101910.0,0.5161402]
[1762670064426,0.16288326,101920.0,101910.0,0.1553402]
[1762670065426,0.26103386,101920.0,101910.0,0.1553402]
[1762670066324,0.75782948,101920.0,101910.0,0.05718]
[1762670066530,0.76946948,101920.0,101910.0,0.04417]
[1762670066721,0.76946948,101920.0,101910.0,0.0225]
[1762670068525,0.1422102,101910.0,101900.0,0.1551221]
[1762670068718,0.63900582,101910.0,101900.0,0.1551221]
[1762670070235,0.63900582,101910.0,101900.0,0.05696]
[1762670070438,0.63900582,101910.0,101900.0,0.1551298]
[1762670072941,0.1422198,101900.0,101890.0,0.23330858]
[1762670073143,0.27821542,101900.0,101890.0,0.23330858]
[1762670083640,0.27821542,101900.0,101890.0,0.59410858]
[1762670084047,0.25535601,101900.0,101890.0,0.59410858]
[1762670085151,0.25535601,101900.0,101890.0,0.23330858]
[1762670085349,0.25535601,101900.0,101890.0,0.59410858]
[1762670088855,0.25535601,101900.0,101890.0,0.23330858]
[1762670089041,0.27822121,101900.0,101890.0,0.59410858]
[1762670089245,0.27822121,101900.0,101890.0,0.23330858]
[1762670089447,0.63902121,101900.0,101890.0,0.13513618]
[1762670089948,0.63902121,101900.0,101890.0,0.09953618]
[1762670090557,0.63902121,101900.0,101890.0,0.12279618]
[1762670090760,0.63902121,101900.0,101890.0,0.13552618]
[1762670090959,0.63902121,101900.0,101890.0,0.23370558]
[1762670091466,0.63902121,101900.0,101890.0,0.05749705]
[1762670093559,0.63902121,101900.0,101890.0,0.15567645]
[1762670093762,0.63902121,101900.0,101890.0,0.05749705]
[1762670093963,0.63902121,101900.0,101890.0,0.04476705]
[1762670095261,0.63902121,101900.0,101890.0,0.02150705]
[1762670095861,0.63902121,101900.0,101890.0,0.04476705]
[1762670096161,0.67434613,101900.0,101890.0,0.04476705]
[1762670096460,0.81580825,101900.0,101890.0,0.05788705]
[1762670099257,0.81580825,101900.0,101890.0,0.04476705]
[1762670100559,0.81580825,101900.0,101890.0,0.02150705]
[1762670100860,0.81580825,101900.0,101890.0,0.00014705]
[1762670101062,0.81580825,101900.0,101890.0,0.04614705]
[1762670102761,0.81580825,101900.0,101890.0,0.15744645]
[1762670103064,0.69561722,101900.0,101890.0,0.15744645]
[1762670103467,0.33481722,101900.0,101890.0,0.15744645]
[1762670103767,0.33481722,101900.0,101890.0,0.51824645]
[1762670105568,0.23664742,101900.0,101890.0,0.51824645]
[1762670106265,0.13004131,101900.0,101890.0,0.51824645]
[1762670106465,0.19259742,101900.0,101890.0,0.51824645]
[1762670107770,0.0228652,101900.0,101890.0,0.51824645]
[1762670108067,0.10773131,101900.0,101890.0,0.51824645]
[1762670108267,0.19259742,101900.0,101890.0,0.51824645]
[1762670109568,0.23739742,101900.0,101890.0,0.51824645]
[1762670109764,0.15253131,101900.0,101890.0,0.51824645]
[1762670110363,0.10773131,101900.0,101890.0,0.51824645]
[1762670110565,0.19259742,101900.0,101890.0,0.51824645]
[1762670110868,0.10773131,101900.0,101890.0,0.51824645]
[1762670112572,0.19259742,101900.0,101890.0,0.51824645]
[1762670114374,0.19259742,101900.0,101890.0,0.59628349]
[1762670115371,0.23739742,101900.0,101890.0,0.59628349]
[1762670115575,0.33556722,101900.0,101890.0,0.59628349]
[1762670116772,0.23739742,101900.0,101890.0,0.59628349]
[1762670122081,0.23739742,101900.0,101890.0,0.23548349]
[1762670122276,0.33556722,101900.0,101890.0,0.59628349]
[1762670122780,0.33556722,101900.0,101890.0,0.51824645]
[1762670126482,0.33556722,101900.0,101890.0,0.15744645]
[1762670127185,0.69636722,101900.0,101890.0,0.15744645]
[1762670129882,0.69636722,101900.0,101890.0,0.05926705]
[1762670130083,0.69636722,101900.0,101890.0,0.15744645]
[1762670134087,0.69636722,101900.0,101890.0,0.05926705]
[1762670134791,0.70800722,101900.0,101890.0,0.04614705]
[1762670138205,0.70800722,101900.0,101890.0,0.00014705]
[1762670139393,0.70800722,101900.0,101890.0,0.02258705]
[1762670139592,0.70800722,101900.0,101890.0,0.04463705]
[1762670140693,0.70800722,101900.0,101890.0,0.14281655]
[1762670140896,0.69636722,101900.0,101890.0,0.15598655]
[1762670141201,0.33556722,101900.0,101890.0,0.15598655]
[1762670144700,0.33556722,101900.0,101890.0,0.51678655]
[1762670154910,0.69636722,101900.0,101890.0,0.05780705]
[1762670155909,0.69636722,101900.0,101890.0,0.15598645]
[1762670156307,0.67509641,101900.0,101890.0,0.15598645]
[1762670156500,0.67509641,101900.0,101890.0,0.05780705]
[1762670156700,0.67509641,101900.0,101890.0,0.04463705]
[1762670157609,0.67509641,101900.0,101890.0,0.14281645]
[1762670159316,0.67509641,101900.0,101890.0,0.15672645]
[1762670160910,0.67509631,101900.0,101890.0,0.15672645]
[1762670162108,0.57692661,101900.0,101890.0,0.15672645]
[1762670162312,0.18080169,101900.0,101890.0,0.51752645]
[1762670164808,0.27897139,101900.0,101890.0,0.51752645]
[1762670165011,0.63977139,101900.0,101890.0,0.05854705]
[1762670165210,0.67509631,101900.0,101890.0,0.05854705]
[1762670165415,0.67509631,101900.0,101890.0,0.04463705]
[1762670166614,0.67509631,101900.0,101890.0,0.15672645]
[1762670166817,0.67509631,101900.0,101890.0,0.02258705]
[1762670167001,0.67509631,101900.0,101890.0,0.00014705]
[1762670167208,0.142419,101880.0,101870.0,0.6649019]
[1762670167402,0.27842069,101880.0,101870.0,0.3041019]
[1762670168517,0.63922069,101880.0,101870.0,0.3061019]
[1762670168713,0.63922069,101880.0,101870.0,0.3091019]
[1762670169114,0.63922069,101880.0,101870.0,0.1608019]
[1762670169311,0.75905718,101880.0,101870.0,0.1608019]
[1762670170011,0.64592069,101880.0,101870.0,0.1608019]
[1762670171709,0.64592069,101880.0,101870.0,0.06261]
[1762670173216,0.64592069,101880.0,101870.0,0.05761]
[1762670174116,0.28512069,101880.0,101870.0,0.05761]
[1762670174313,0.63922069,101880.0,101870.0,0.1558086]
[1762670175117,0.63922069,101880.0,101870.0,0.05761]
[1762670175918,0.63922069,101880.0,101870.0,0.1558086]
[1762670176418,0.63922069,101880.0,101870.0,0.05761]
[1762670177421,0.63922069,101880.0,101870.0,0.02105]
[1762670177818,0.63922069,101880.0,101870.0,0.04398]
[1762670178716,0.63922069,101880.0,101870.0,0.05789]
[1762670179113,0.27842069,101880.0,101870.0,0.05789]
[1762670179320,0.63922069,101880.0,101870.0,0.05789]
[1762670180323,0.63922069,101880.0,101870.0,0.04398]
[1762670182915,0.63922069,101880.0,101870.0,0.1560886]
[1762670184719,0.63922069,101880.0,101870.0,0.05789]
[1762670186121,0.63922069,101880.0,101870.0,0.02105]
[1762670186424,0.63922069,101880.0,101870.0,0.04277]
[1762670187226,0.63922069,101880.0,101870.0,0.0562]
[1762670188429,0.63922069,101880.0,101870.0,0.1543985]
[1762670189328,0.61635549,101880.0,101870.0,0.1543985]
[1762670189521,0.63930682,101880.0,101870.0,0.1543985]
[1762670190228,0.63930682,101880.0,101870.0,0.0562]
[1762670191128,0.27850682,101880.0,101870.0,0.0562]
[1762670191319,0.63930682,101880.0,101870.0,0.0562]
[1762670191519,0.63930682,101880.0,101870.0,0.1543985]
[1762670193018,0.63930682,101880.0,101870.0,0.02105]
[1762670193822,0.63930682,101880.0,101870.0,0.04277]
[1762670194426,0.63930682,101880.0,101870.0,0.0562]
[1762670195022,0.63930682,101880.0,101870.0,0.1543985]
[1762670197324,0.67463174,101880.0,101870.0,0.1543985]
[1762670197926,0.27850682,101880.0,101870.0,0.1543985]
[1762670201831,0.27850682,101880.0,101870.0,0.0562]
[1762670202022,0.63930682,101880.0,101870.0,0.04277]
[1762670202225,0.67463174,101880.0,101870.0,0.04277]
[1762670203027,0.67463174,101880.0,101870.0,0.0562]
[1762670205935,0.67463174,101880.0,101870.0,0.02105]
[1762670206434,0.67463174,101880.0,101870.0,0.04266]
[1762670207434,0.67463174,101880.0,101870.0,0.1544485]
[1762670208927,0.67463174,101880.0,101870.0,0.05625]
[1762670212443,0.67463174,101880.0,101870.0,0.1544485]
[1762670213240,0.67463174,101880.0,101870.0,0.05625]
[1762670215958,0.56149525,101880.0,101870.0,0.05625]
[1762670216160,0.67463174,101880.0,101870.0,0.05625]
[1762670217761,0.31383174,101880.0,101870.0,0.05625]
[1762670217959,0.67463174,101880.0,101870.0,0.05625]
[1762670218358,0.73124847,101880.0,101870.0,0.05625]
[1762670218855,0.37044847,101880.0,101870.0,0.05625]
[1762670219059,0.73124847,101880.0,101870.0,0.05625]
[1762670220952,0.73124847,101880.0,101870.0,0.1544485]
[1762670221158,0.37044847,101880.0,101870.0,0.1544485]
[1762670221356,0.20069525,101880.0,101870.0,0.1544485]
[1762670221558,0.37044847,101880.0,101870.0,0.1544485]
[1762670224259,0.33512355,101880.0,101870.0,0.1544485]
[1762670225162,0.23693455,101880.0,101870.0,0.1544485]
[1762670225365,0.33512335,101880.0,101870.0,0.1544485]
[1762670226355,0.15205794,101880.0,101870.0,0.60012511]
[1762670226661,0.15208778,101880.0,101870.0,0.60012511]
[1762670227063,0.15208778,101880.0,101870.0,0.5152485]
[1762670234366,0.06721117,101880.0,101870.0,0.5152485]
[1762670234667,0.15208778,101880.0,101870.0,0.5152485]
[1762670235664,0.15208778,101880.0,101870.0,0.60012511]
[1762670235665,0.02298117,101880.0,101870.0,0.60012511]
[1762670235968,0.13008366,101890.0,101880.0,0.1570488]
[1762670236267,0.13008366,101890.0,101880.0,0.5178488]
[1762670237167,0.13108366,101890.0,101880.0,0.5178488]
[1762670237568,0.13208366,101890.0,101880.0,0.5178488]
[1762670240168,0.04720705,101890.0,101880.0,0.5178488]
[1762670240373,0.13208366,101890.0,101880.0,0.5178488]
[1762670253675,0.08702366,101890.0,101880.0,0.5178488]
[1762670255284,0.10993409,101890.0,101880.0,0.5178488]
[1762670261082,0.13261409,101890.0,101880.0,0.5178488]
[1762670261290,0.15555409,101890.0,101880.0,0.5178488]
[1762670266187,0.15555409,101890.0,101880.0,0.1570488]
[1762670266388,0.15555409,101890.0,101880.0,0.5178488]
[1762670268588,0.13264366,101890.0,101880.0,0.5178488]
[1762670268790,0.15564896,101890.0,101880.0,0.5178488]
[1762670271096,0.15564896,101890.0,101880.0,0.1570488]
[1762670271298,0.15564896,101890.0,101880.0,0.5178488]
[1762670271595,0.15364896,101890.0,101880.0,0.5178488]
[1762670278098,0.13070896,101890.0,101880.0,0.5178488]
[1762670278294,0.04583235,101890.0,101880.0,0.5178488]
[1762670280903,0.04583235,101890.0,101880.0,0.1570488]
[1762670281206,0.04583235,101890.0,101880.0,0.8786488]
[1762670283805,0.06762235,101890.0,101880.0,0.8786488]
[1762670284100,0.67504428,101890.0,101880.0,0.1570489]
[1762670284302,0.64641936,101890.0,101880.0,0.05886]
[1762670284493,0.64641936,101890.0,101880.0,0.0455]
[1762670284699,0.68174428,101890.0,101880.0,0.0455]
[1762670285411,0.68174428,101890.0,101880.0,0.1436889]
[1762670285610,0.68274428,101890.0,101880.0,0.1436889]
[1762670286499,0.64741936,101890.0,101880.0,0.1436889]
[1762670286699,0.68374428,101890.0,101880.0,0.1436889]
[1762670287108,0.64841936,101890.0,101880.0,0.1436889]
[1762670287906,0.04408,101870.0,101860.0,0.15522715]
[1762670288095,0.18020301,101870.0,101860.0,0.51602715]
[1762670289102,0.18020301,101870.0,101860.0,0.51702715]
[1762670289909,0.27840151,101870.0,101860.0,0.51802715]
[1762670290796,0.27840151,101870.0,101860.0,0.51702715]
[1762670290999,0.27840151,101870.0,101860.0,0.51602715]
[1762670291205,0.27840151,101870.0,101860.0,0.05702705]
[1762670291411,0.27826614,101870.0,101860.0,0.15523525]
[1762670295309,0.15719771,101870.0,101860.0,0.51603525]
[1762670296505,0.25539621,101870.0,101860.0,0.51603525]
[1762670298610,0.25539621,101870.0,101860.0,0.15523525]
[1762670309311,0.27826638,101870.0,101860.0,0.15523525]
[1762670319012,0.27826638,101870.0,101860.0,0.05702705]
[1762670319013,0.63906638,101870.0,101860.0,0.05702705]
[1762670319621,0.63906638,101870.0,101860.0,0.15523515]
[1762670323016,0.63906638,101870.0,101860.0,0.05702705]
[1762670323220,0.63906638,101870.0,101860.0,0.15523515]
[1762670340428,0.6108378,101870.0,101860.0,0.15523515]
[1762670343933,0.2500378,101870.0,101860.0,0.51603515]
[1762670344325,0.1518393,101870.0,101860.0,0.51603515]
[1762670344634,0.06695017,101870.0,101860.0,0.51603515]
[1762670344823,0.1518393,101870.0,101860.0,0.51603515]
[1762670345828,0.06695017,101870.0,101860.0,0.51603515]
[1762670346029,0.04516017,101870.0,101860.0,0.60092428]
[1762670346230,0.1300493,101870.0,101860.0,0.60092428]
[1762670346631,0.1077593,101870.0,101860.0,0.60092428]
[1762670347833,0.1310893,101870.0,101860.0,0.60092428]
[1762670352036,0.1310893,101870.0,101860.0,0.51603515]
[1762670353022,0.08503618,101890.0,101860.0,0.68581341]
[1762670353228,0.15250623,101890.0,101880.0,0.5164989]
[1762670354928,0.15350623,101890.0,101880.0,0.5164989]
[1762670355431,0.04685705,101890.0,101880.0,0.5164989]
[1762670355635,0.13174618,101890.0,101880.0,0.5164989]
[1762670356232,0.04685705,101890.0,101880.0,0.5164989]
[1762670356537,0.13174618,101890.0,101880.0,0.5164989]
[1762670359240,0.13074618,101890.0,101880.0,0.5174989]
[1762670360038,0.00014705,101890.0,101880.0,0.60338803]
[1762670360235,0.00014705,101890.0,101880.0,0.96418803]
[1762670360540,0.12959913,101910.0,101900.0,0.1556796]
[1762670360840,0.12959913,101910.0,101900.0,0.5164796]
[1762670361639,0.04571,101910.0,101900.0,0.5164796]
[1762670361840,0.13159913,101910.0,101900.0,0.5164796]
[1762670362236,0.002,101910.0,101900.0,0.60136873]
[1762670362634,0.08688913,101910.0,101900.0,0.5164796]
[1762670364839,0.08688913,101910.0,101900.0,0.60136873]
[1762670365037,0.002,101910.0,101900.0,0.60136873]
[1762670366446,0.08688913,101910.0,101900.0,0.60136873]
[1762670367844,0.08688913,101910.0,101900.0,0.5164796]
[1762670369149,0.13123913,101910.0,101900.0,0.5164796]
[1762670370346,0.04635,101910.0,101900.0,0.5164796]
[1762670370551,0.13123913,101910.0,101900.0,0.5164796]
[1762670375151,0.04635,101910.0,101900.0,0.1556796]
[1762670375451,0.13123913,101910.0,101900.0,0.1556796]
[1762670382366,0.15374369,101910.0,101900.0,0.1556796]
[1762670384166,0.25190369,101910.0,101900.0,0.1556796]
[1762670384360,0.15374369,101910.0,101900.0,0.1556796]
[1762670385161,0.25190369,101910.0,101900.0,0.1556796]
[1762670386068,0.16701456,101910.0,101900.0,0.1556796]
[1762670386366,0.25190369,101910.0,101900.0,0.1556796]
[1762670387369,0.15374369,101910.0,101900.0,0.1556796]
[1762670387563,0.15374369,101910.0,101900.0,0.5164796]
[1762670387771,0.02450456,101910.0,101900.0,0.5164796]
[1762670387959,0.10939369,101910.0,101900.0,0.5164796]
[1762670388154,0.02450456,101910.0,101900.0,0.5164796]
[1762670388367,0.10939369,101910.0,101900.0,0.5164796]
[1762670389158,0.02450456,101910.0,101900.0,0.52639442]
[1762670389361,0.02450456,101910.0,101900.0,0.61128355]
[1762670389761,0.02450456,101910.0,101900.0,0.60136873]
[1762670390056,0.02350456,101910.0,101900.0,0.60136873]
[1762670390265,0.02250456,101910.0,101900.0,0.60136873]
[1762670390964,0.12886618,101920.0,101910.0,0.15746]
[1762670391162,0.15141647,101920.0,101910.0,0.51826]
[1762670391360,0.06652734,101920.0,101910.0,0.51826]
[1762670391570,0.15141647,101920.0,101910.0,0.51826]
[1762670392766,0.06652734,101920.0,101910.0,0.51826]
[1762670393068,0.15241647,101920.0,101910.0,0.51826]
[1762670393370,0.15341647,101920.0,101910.0,0.51826]
[1762670394865,0.02469734,101920.0,101910.0,0.60314913]
[1762670395667,0.02469734,101920.0,101910.0,0.75144913]
[1762670395868,0.00214705,101920.0,101910.0,0.75144913]
[1762670397665,0.00214705,101920.0,101910.0,0.66656]
[1762670397963,0.00214705,101920.0,101910.0,0.75144913]
[1762670398164,0.00214705,101920.0,101910.0,0.66656]
[1762670398369,0.53706642,101950.0,101940.0,0.1547611]
[1762670398568,0.64162542,101950.0,101940.0,0.05663]
[1762670398875,0.69463006,101950.0,101940.0,0.05663]
[1762670399173,0.60974093,101950.0,101940.0,0.05663]
[1762670399372,0.72651455,101950.0,101940.0,0.05663]
[1762670399770,0.73151455,101950.0,101940.0,0.05663]
[1762670399971,0.78451919,101950.0,101940.0,0.05663]
[1762670400365,0.73376892,101950.0,101940.0,0.05663]
[1762670400763,0.73376892,101950.0,101940.0,0.1547611]
[1762670403266,0.68076428,101950.0,101940.0,0.1547611]
[1762670404567,0.68076428,101950.0,101940.0,0.05663]
[1762670409182,0.68076428,101950.0,101940.0,0.1547611]
[1762670409381,0.64543936,101950.0,101940.0,0.1547611]
[1762670409878,0.64543936,101950.0,101940.0,0.05663]
[1762670411280,0.64543936,101950.0,101940.0,0.1547611]
[1762670413280,0.68076428,101950.0,101940.0,0.1547611]
[1762670416476,0.67376428,101950.0,101940.0,0.1547611]
[1762670416775,0.67676428,101950.0,101940.0,0.1547611]
[1762670417076,0.67276428,101950.0,101940.0,0.1547611]
[1762670417276,0.67476428,101950.0,101940.0,0.1547611]
[1762670418482,0.61374093,101950.0,101940.0,0.1547611]
[1762670418685,0.72676892,101950.0,101940.0,0.1547611]
[1762670420184,0.72676892,101950.0,101940.0,0.05663]
[1762670420377,0.72676892,101950.0,101940.0,0.1547611]
[1762670421787,0.61374093,101950.0,101940.0,0.1547611]
[1762670421985,0.72676892,101950.0,101940.0,0.1547611]
[1762670422181,0.67376428,101950.0,101940.0,0.1547611]
[1762670422374,0.63843936,101950.0,101940.0,0.1547611]
[1762670424199,0.63643936,101950.0,101940.0,0.1547611]
[1762670424389,0.63743936,101950.0,101940.0,0.1547611]
[1762670424879,0.63643936,101950.0,101940.0,0.1547611]
[1762670427892,0.27848751,101950.0,101940.0,0.5155611]
[1762670428897,0.27848751,101950.0,101940.0,0.1547611]
[1762670429395,0.63928751,101950.0,101940.0,0.1547611]
[1762670430098,0.52625952,101950.0,101940.0,0.1547611]
[1762670430287,0.63928751,101950.0,101940.0,0.1547611]
[1762670432097,0.52625952,101950.0,101940.0,0.1547611]
[1762670432298,0.63928751,101950.0,101940.0,0.1547611]
[1762670433091,0.54116601,101950.0,101940.0,0.1547611]
[1762670433290,0.63928751,101950.0,101940.0,0.1547611]
[1762670434089,0.54116601,101950.0,101940.0,0.1547611]
[1762670434294,0.63928751,101950.0,101940.0,0.1547611]
[1762670435394,0.54116601,101950.0,101940.0,0.1547611]
[1762670436894,0.63928751,101950.0,101940.0,0.1547611]
[1762670437897,0.54116601,101950.0,101940.0,0.1547611]
[1762670440593,0.06733802,101950.0,101940.0,0.5155611]
[1762670448204,0.07014802,101950.0,101940.0,0.5155611]
[1762670448405,0.18317601,101950.0,101940.0,0.5155611]
[1762670449208,0.07014802,101950.0,101940.0,0.5155611]
[1762670450606,0.0348096,101950.0,101940.0,0.5155611]
[1762670452105,0.0348096,101950.0,101940.0,0.56849967]
[1762670452409,0.17721996,101960.0,101950.0,0.1554615]
[1762670452808,0.32388026,101960.0,101950.0,0.1554615]
[1762670452997,0.01450705,101960.0,101950.0,0.5162615]
[1762670453197,0.01450705,101960.0,101950.0,0.56920007]
[1762670453198,0.00014705,101960.0,101950.0,0.56920007]
[1762670453808,0.00114705,101960.0,101950.0,0.56920007]
[1762670454215,0.00214705,101960.0,101950.0,0.56920007]
[1762670454408,0.00114705,101960.0,101950.0,0.57020007]
[1762670455312,0.00014705,101960.0,101950.0,0.57020007]
[1762670455612,0.00014705,101960.0,101950.0,0.5809856]
[1762670455910,0.00014705,101960.0,101950.0,0.57120007]
[1762670458014,0.63596561,101980.0,101970.0,0.1540223]
[1762670458506,0.60064069,101980.0,101970.0,0.1540223]
[1762670460114,0.60264069,101980.0,101970.0,0.1540223]
[1762670460317,0.65903582,101980.0,101970.0,0.1540223]
[1762670461316,0.66103582,101980.0,101970.0,0.1540223]
[1762670461512,0.20214312,101980.0,101970.0,0.1540223]
[1762670461725,0.004,101980.0,101970.0,0.5148223]
[1762670462017,0.08871156,101980.0,101970.0,0.59953386]
[1762670462213,0.004,101980.0,101970.0,0.5148223]
[1762670462516,0.08871156,101980.0,101970.0,0.5148223]
[1762670463420,0.004,101980.0,101970.0,0.5148223]
[1762670463614,0.004,101980.0,101970.0,0.59953386]
[1762670464011,0.004,101980.0,101970.0,0.65247243]
[1762670465214,0.08871156,101980.0,101970.0,0.7292007]
[1762670465422,0.004,101980.0,101970.0,0.7292007]
[1762670465623,0.08871156,101980.0,101970.0,0.7292007]
[1762670465919,0.08871156,101980.0,101970.0,0.64448914]
[1762670466315,0.08871156,101980.0,101970.0,0.59155057]
[1762670466513,0.004,101980.0,101970.0,0.67626213]
[1762670467414,0.00014705,101990.0,101980.0,0.1540127]
[1762670467613,0.00014705,101990.0,101980.0,0.59952426]
[1762670467813,0.08471156,102000.0,101990.0,0.1540031]
[1762670468021,0.08471156,102000.0,101990.0,0.5148031]
[1762670468218,0.02902,102020.0,102010.0,0.1539838]
[1762670468416,0.02226795,102020.0,102010.0,0.1539838]
[1762670468720,0.02902,102030.0,102020.0,0.1539742]
[1762670468920,0.38982,102040.0,102030.0,0.05592]
[1762670469122,0.41208191,102040.0,102030.0,0.05592]
[1762670469313,0.65812592,102040.0,102030.0,0.05592]
[1762670469715,0.82754904,102040.0,102030.0,0.05592]
[1762670470220,0.56009092,102040.0,102030.0,0.05592]
[1762670470419,0.82754904,102040.0,102030.0,0.05592]
[1762670470715,0.9122606,102040.0,102030.0,0.02143]
[1762670470922,0.9152606,102040.0,102030.0,0.02143]
[1762670471122,0.02902,102030.0,102020.0,0.05606705]
[1762670471318,0.65728772,102030.0,102020.0,0.05606705]
[1762670471713,0.65728772,102030.0,102020.0,0.15412125]
[1762670471923,0.55924312,102030.0,102020.0,0.15412125]
[1762670472121,0.65728772,102030.0,102020.0,0.15412125]
[1762670472824,0.55924312,102030.0,102020.0,0.15412125]
[1762670473326,0.56124312,102030.0,102020.0,0.15412125]
[1762670474126,0.56124312,102030.0,102020.0,0.05606705]
[1762670474127,0.65928772,102030.0,102020.0,0.05606705]
[1762670474723,0.56124312,102030.0,102020.0,0.15412125]
[1762670474915,0.65928772,102030.0,102020.0,0.15412125]
[1762670475817,0.56124312,102030.0,102020.0,0.15412125]
[1762670476013,0.65928772,102030.0,102020.0,0.15412125]
[1762670479527,0.20044312,102030.0,102020.0,0.15412125]
[1762670479726,0.65928772,102030.0,102020.0,0.15412125]
[1762670482429,0.66709772,102030.0,102020.0,0.00014705]
[1762670482615,0.7740077,102030.0,102020.0,0.00014705]
[1762670482814,0.68929614,102030.0,102020.0,0.00014705]
[1762670483228,0.1337839,102010.0,102000.0,0.1195005]
[1762670483419,0.66400702,102010.0,102000.0,0.02143]
[1762670483723,0.66400702,102010.0,102000.0,0.04332]
[1762670484118,0.66400702,102010.0,102000.0,0.1413935]
[1762670484333,0.66400702,102010.0,102000.0,0.1539935]
[1762670484518,0.66400702,102010.0,102000.0,0.1559935]
[1762670485218,0.66400702,102010.0,102000.0,0.05792]
[1762670485414,0.68623105,102010.0,102000.0,0.05792]
[1762670485623,1.04703105,102010.0,102000.0,0.002]
[1762670485827,1.27797626,102010.0,102000.0,0.002]
[1762670486025,0.1270935,102000.0,101990.0,0.00014705]
[1762670486321,0.76425221,102000.0,101990.0,0.00014705]
[1762670487331,0.67954065,102000.0,101990.0,0.11991015]
[1762670487532,0.67954065,102000.0,101990.0,0.14165015]
[1762670488025,0.67954065,102000.0,101990.0,0.04356705]
[1762670489930,0.67954065,102000.0,101990.0,0.00014705]
[1762670490328,0.76425221,102000.0,101990.0,0.00014705]
[1762670490633,0.1347631,101990.0,101980.0,7.463e-05]
[1762670490928,0.68721025,101990.0,101980.0,7.463e-05]
[1762670492531,0.68721025,101990.0,101980.0,0.02175463]
[1762670492733,0.68921025,101990.0,101980.0,0.02175463]
[1762670492923,0.51212713,101990.0,101980.0,0.15509733]
[1762670493227,0.59883869,101990.0,101980.0,0.15509733]
[1762670494532,0.41604403,101990.0,101980.0,0.15509733]
[1762670494738,0.50075559,101990.0,101980.0,0.15509733]
[1762670495026,0.13995559,101990.0,101980.0,0.15509733]
[1762670499530,0.13995559,101990.0,101980.0,0.51589733]
[1762670499735,0.03302,101990.0,101980.0,0.51589733]
[1762670499935,0.11773156,101990.0,101980.0,0.51589733]
[1762670500133,0.004,101990.0,101980.0,0.60060889]
[1762670503734,0.08485861,102000.0,101990.0,0.1550131]
[1762670504033,0.00014705,102000.0,101990.0,0.5158131]
[1762670504435,0.00014705,102000.0,101990.0,0.60052466]
[1762670504736,0.00014705,102000.0,101990.0,0.5158131]
[1762670505041,0.00314705,102000.0,101990.0,0.5158131]
[1762670506228,0.00614705,102000.0,101990.0,0.60052466]
[1762670507128,0.00614705,102000.0,101990.0,0.5158131]
[1762670508333,0.00314705,102000.0,101990.0,0.60152466]
[1762670508733,0.08471156,102010.0,102000.0,0.1571035]
[1762670508929,0.48812156,102020.0,102010.0,0.1570938]
[1762670509240,0.59506744,102020.0,102010.0,0.2358626]
[1762670509938,0.69412164,102020.0,102010.0,0.2358626]
[1762670511244,0.59606744,102020.0,102010.0,0.2358626]
[1762670512245,0.59706744,102020.0,102010.0,0.2358626]
[1762670512544,0.59606744,102020.0,102010.0,0.2358626]
[1762670512746,0.23526744,102020.0,102010.0,0.2378626]
[1762670513050,0.33232164,102020.0,102010.0,0.2378626]
[1762670514447,0.23426744,102020.0,102010.0,0.2378626]
[1762670514650,0.33232164,102020.0,102010.0,0.2378626]
[1762670515134,0.23426744,102020.0,102010.0,0.2378626]
[1762670515332,0.69312164,102020.0,102010.0,0.2378626]
[1762670515533,0.7845332,102020.0,102010.0,0.002]
[1762670515733,0.7845332,102020.0,102010.0,0.1000639]
[1762670515953,0.69982164,102020.0,102010.0,0.002]
[1762670516738,0.1410839,102010.0,102000.0,0.15693415]
[1762670516942,0.69354134,102010.0,102000.0,0.15693415]
[1762670517339,0.69754134,102010.0,102000.0,0.15693415]
[1762670519546,0.69754134,102010.0,102000.0,0.15893415]
[1762670519847,0.69754134,102010.0,102000.0,0.06086705]
[1762670520146,0.69754134,102010.0,102000.0,0.04722705]
[1762670520639,0.69754134,102010.0,102000.0,0.02525705]
[1762670520840,0.69754134,102010.0,102000.0,0.00214705]
[1762670521545,0.84472814,102010.0,102000.0,0.00214705]
[1762670522143,0.1411031,101990.0,101980.0,0.15675063]
[1762670522352,0.25403425,101990.0,101980.0,0.15675063]
[1762670522836,0.04302,101990.0,101980.0,0.15675063]
[1762670523152,0.1411031,101990.0,101980.0,0.15675063]
[1762670523342,0.04302,101990.0,101980.0,0.15675063]
[1762670524541,0.15595115,101990.0,101980.0,0.15675063]
[1762670525248,0.04302,101990.0,101980.0,0.15775063]
[1762670525449,0.04302,101990.0,101980.0,0.16075063]
[1762670526148,0.1411031,101990.0,101980.0,0.16075063]
[1762670526351,0.25403425,101990.0,101980.0,0.16075063]